bitfinex/quotes_BTCUSD_20250308
["timestamp","ask_amount","ask_price","bid_price","bid_amount"]
[1741410786384,0.22002747,86563.0,86560.0,0.00022351]
[1741410786746,0.011552,86561.0,86560.0,0.00022351]
[1741410787376,0.01726396,86561.0,86560.0,0.00022351]
[1741410789900,0.03538402,86561.0,86560.0,0.00022351]
[1741410790418,0.13953015,86561.0,86560.0,0.00022351]
[1741410792620,0.07155531,86561.0,86560.0,0.00022351]
[1741410797880,0.09432765,86561.0,86560.0,0.00022351]
[1741410799381,0.09432765,86561.0,86551.0,0.0004]
[1741410799382,0.242627,86552.0,86551.0,0.0004]
[1741410799641,0.27879829,86552.0,86551.0,0.0004]
[1741410799865,0.28449124,86552.0,86551.0,0.0004]
[1741410801864,0.29773224,86552.0,86551.0,0.0004]
[1741410802265,0.31585501,86552.0,86551.0,0.0004]
[1741410803246,0.29773224,86552.0,86551.0,0.0004]
[1741410803891,0.29773224,86552.0,86551.0,0.0005698]
[1741410806673,0.05510524,86552.0,86551.0,0.0800698]
[1741410806844,0.04186424,86552.0,86551.0,0.3719998]
[1741410807052,0.00569295,86552.0,86551.0,0.3719998]
[1741410807253,0.00011621,86561.0,86555.0,0.242619]
[1741410807485,0.03614951,86560.0,86556.0,0.122353]
[1741410807707,0.04180738,86560.0,86556.0,0.122353]
[1741410807834,0.03614951,86559.0,86556.0,0.122353]
[1741410808458,0.00565787,86558.0,86556.0,0.122353]
[1741410808663,0.03614951,86557.0,86556.0,0.122353]
[1741410808883,0.03614951,86557.0,86555.0,0.242619]
[1741410809204,0.03614951,86556.0,86555.0,0.242619]
[1741410809799,0.04180738,86556.0,86555.0,0.318619]
[1741410810193,0.03614951,86556.0,86555.0,0.318619]
[1741410810794,0.03614951,86559.0,86555.0,0.318619]
[1741410810999,0.03614951,86558.0,86555.0,0.318619]
[1741410811274,0.03614951,86557.0,86555.0,0.318619]
[1741410811485,0.03614951,86557.0,86555.0,0.076]
[1741410811688,0.04180738,86556.0,86555.0,0.076]
[1741410812087,0.05336038,86556.0,86555.0,0.076]
[1741410812791,0.011553,86554.0,86551.0,0.0498698]
[1741410812999,0.03614951,86553.0,86551.0,0.0498698]
[1741410813447,0.00565787,86552.0,86551.0,0.0498698]
[1741410813659,0.04180738,86552.0,86551.0,0.0498698]
[1741410813796,0.05336038,86552.0,86551.0,0.0498698]
[1741410816038,0.05336038,86552.0,86551.0,0.0005698]
[1741410830580,0.07148178,86552.0,86551.0,0.0005698]
[1741410846743,0.06582391,86552.0,86551.0,0.0005698]
[1741410849085,0.05427091,86552.0,86551.0,0.0005698]
[1741410849265,0.05427091,86552.0,86551.0,0.0902228]
[1741410849461,0.05427091,86552.0,86551.0,0.0786698]
[1741410851255,0.06582391,86552.0,86551.0,0.0005698]
[1741410862606,0.231074,86552.0,86551.0,0.0005698]
[1741410862834,0.24919647,86552.0,86551.0,0.0005698]
[1741410863074,0.26074947,86552.0,86551.0,0.0005698]
[1741410863275,0.242627,86552.0,86551.0,0.0005698]
[1741410866147,0.26074928,86552.0,86551.0,0.0005698]
[1741410874843,0.011553,86554.0,86551.0,0.0005698]
[1741410874980,0.011553,86552.0,86551.0,0.0005698]
[1741410875190,0.06587159,86552.0,86551.0,0.0005698]
[1741410875713,0.2788231,86552.0,86551.0,0.0005698]
[1741410878159,0.29694587,86552.0,86551.0,0.0005698]
[1741410888806,0.3202446,86552.0,86551.0,0.0005698]
[1741410889981,0.3202446,86552.0,86550.0,0.005]
[1741410890215,0.0477491,86551.0,86550.0,0.005]
[1741410897511,0.0477491,86551.0,86550.0,0.0051697]
[1741410903182,0.26074977,86552.0,86550.0,0.0051697]
[1741410903183,0.01812277,86552.0,86550.0,0.0051697]
[1741410903385,0.011553,86551.0,86550.0,0.0051697]
[1741410924746,0.0118926,86551.0,86550.0,0.0051697]
[1741410932114,0.02492678,86551.0,86550.0,0.0051697]
[1741410935176,0.04305001,86551.0,86550.0,0.0051697]
[1741410936550,0.231072,86553.0,86550.0,0.0051697]
[1741410936922,0.02967621,86551.0,86550.0,0.0051697]
[1741410937057,0.06589949,86551.0,86550.0,0.0051697]
[1741410937856,0.07670634,86551.0,86550.0,0.0051697]
[1741410940451,0.05858313,86551.0,86550.0,0.0051697]
[1741410942608,0.05858313,86551.0,86550.0,0.0839697]
[1741410950480,0.05858313,86551.0,86550.0,0.06584651]
[1741410950710,0.07670633,86551.0,86550.0,0.06584651]
[1741410951062,0.05858313,86551.0,86550.0,0.06584651]
[1741410951932,0.07670659,86551.0,86550.0,0.06584651]
[1741410953988,0.05858313,86551.0,86550.0,0.06584651]
[1741410955006,0.0118926,86552.0,86550.0,0.06584651]
[1741410955228,0.0089998,86551.0,86550.0,0.06584651]
[1741410955950,0.0205528,86551.0,86550.0,0.06584651]
[1741410958462,0.03867596,86551.0,86550.0,0.06584651]
[1741410959859,0.03867596,86551.0,86550.0,0.06601621]
[1741410970526,0.0205528,86551.0,86550.0,0.06601621]
[1741410973460,0.0205528,86551.0,86550.0,0.0001697]
[1741410977606,0.242652,86543.0,86542.0,0.0001698]
[1741410977801,0.27886849,86543.0,86542.0,0.0001698]
[1741410978091,0.28785425,86543.0,86542.0,0.0001698]
[1741410978679,0.11833051,86543.0,86542.0,0.0001698]
[1741410979005,0.12988451,86543.0,86542.0,0.0001698]
[1741410980608,0.14800857,86543.0,86542.0,0.0001698]
[1741410985814,0.12988451,86543.0,86542.0,0.0001698]
[1741410987645,0.20748451,86543.0,86542.0,0.0001698]
[1741410988302,0.22561117,86543.0,86542.0,0.0001698]
[1741410988704,0.22561117,86543.0,86517.0,0.0492698]
[1741410988705,0.242684,86532.0,86517.0,0.0492698]
[1741410988906,0.242684,86532.0,86517.0,0.0001698]
[1741410989111,0.28782411,86532.0,86517.0,0.0001698]
[1741410989357,0.36852411,86532.0,86517.0,0.0001698]
[1741410989739,0.38665227,86532.0,86517.0,0.0001698]
[1741410992478,0.23116,86520.0,86517.0,0.0001698]
[1741410992714,0.231165,86518.0,86517.0,0.0001698]
[1741410992944,0.242723,86518.0,86517.0,0.0001698]
[1741410993134,0.25164662,86518.0,86517.0,0.0001698]
[1741410993341,0.26977681,86518.0,86517.0,0.0001698]
[1741410994358,0.28239631,86518.0,86517.0,0.0001698]
[1741410995647,0.30573053,86518.0,86517.0,0.0001698]
[1741410995848,0.40961237,86518.0,86517.0,0.0001698]
[1741410998253,0.30573053,86518.0,86517.0,0.0001698]
[1741411002485,0.34174551,86518.0,86517.0,0.0001698]
[1741411009861,0.34174551,86518.0,86517.0,0.00055742]
[1741411022289,0.32361532,86518.0,86517.0,0.00055742]
[1741411022869,0.011558,86516.0,86511.0,0.0004]
[1741411023123,0.04757298,86516.0,86515.0,0.00029788]
[1741411023259,0.05485106,86516.0,86515.0,0.00029788]
[1741411025668,0.07298407,86516.0,86515.0,0.00029788]
[1741411028435,0.07298407,86516.0,86515.0,1e-08]
[1741411030204,0.24276,86505.0,86504.0,0.0001698]
[1741411030446,0.35332,86505.0,86504.0,0.0001698]
[1741411030675,0.28604208,86505.0,86504.0,0.0001698]
[1741411031092,0.30417557,86505.0,86504.0,0.0001698]
[1741411033903,0.31299663,86505.0,86504.0,0.0001698]
[1741411035214,0.33568667,86505.0,86504.0,0.0001698]
[1741411036794,0.33568667,86505.0,86494.0,0.0458]
[1741411036795,0.011561,86495.0,86494.0,0.0458]
[1741411037005,0.05458856,86495.0,86494.0,0.0458]
[1741411040059,0.07272269,86495.0,86494.0,0.0458]
[1741411043138,0.07272269,86495.0,86494.0,0.0459698]
[1741411045031,0.07272269,86495.0,86494.0,0.1234698]
[1741411046613,0.06116169,86495.0,86494.0,0.1234698]
[1741411046822,0.05414911,86495.0,86494.0,0.1350308]
[1741411047025,0.03601498,86495.0,86494.0,0.1350308]
[1741411047232,0.01156,86502.0,86496.0,0.0775]
[1741411047428,0.03615227,86501.0,86496.0,0.0775]
[1741411047615,0.04314481,86501.0,86497.0,0.231221]
[1741411047810,0.03615227,86500.0,86497.0,0.0775]
[1741411048083,0.03615227,86500.0,86497.0,0.30872]
[1741411048233,0.03615227,86504.0,86499.0,0.08906]
[1741411048434,0.03615227,86504.0,86499.0,0.242774]
[1741411048656,0.03615227,86504.0,86500.0,0.08906]
[1741411049052,0.27891627,86504.0,86500.0,0.0775]
[1741411049269,0.01156,86502.0,86500.0,0.0775]
[1741411049474,0.03615227,86501.0,86500.0,0.0775]
[1741411049644,0.03615227,86501.0,86500.0,0.13736]
[1741411049849,0.0181335,86502.0,86500.0,0.291072]
[1741411050121,0.0181335,86502.0,86501.0,0.0823]
[1741411050596,0.05429076,86502.0,86501.0,0.0823]
[1741411051609,0.06585076,86502.0,86501.0,0.0823]
[1741411054676,0.07287343,86502.0,86501.0,0.0823]
[1741411056162,0.06131343,86502.0,86501.0,0.0823]
[1741411056359,0.05429076,86502.0,86501.0,0.09386]
[1741411056857,0.06131118,86502.0,86501.0,0.04167118]
[1741411057330,0.06131118,86502.0,86501.0,0.03011118]
[1741411059805,0.06131118,86502.0,86501.0,0.03028098]
[1741411060652,0.04317768,86502.0,86501.0,0.03028098]
[1741411063393,0.04317768,86502.0,86501.0,0.04184098]
[1741411063978,0.04317768,86502.0,86501.0,0.02370822]
[1741411065040,0.00702042,86502.0,86501.0,0.02370822]
[1741411065248,0.0003396,86504.0,86503.0,0.01156]
[1741411066473,0.0003396,86504.0,86503.0,0.07710741]
[1741411066890,0.0003396,86504.0,86503.0,0.15530741]
[1741411067731,0.0003396,86504.0,86503.0,0.15630741]
[1741411068579,0.0003396,86504.0,86503.0,1.01300661]
[1741411068722,0.00072702,86518.0,86503.0,1.01300661]
[1741411068723,0.00072702,86518.0,86517.0,0.370326]
[1741411068930,0.00072702,86518.0,86517.0,0.8025452]
[1741411070587,0.01885573,86518.0,86517.0,0.8025452]
[1741411072465,0.01885573,86518.0,86517.0,0.81708605]
[1741411072653,0.00072702,86518.0,86517.0,0.81708605]
[1741411075452,0.01885487,86518.0,86517.0,0.81708605]
[1741411075697,0.10402396,86536.0,86521.0,0.38765485]
[1741411075939,0.00045572,86522.0,86521.0,0.38765485]
[1741411076190,0.00045572,86522.0,86521.0,0.373114]
[1741411076442,0.01858265,86522.0,86521.0,0.373114]
[1741411077410,0.01858265,86522.0,86521.0,0.6948132]
[1741411091217,0.18283043,86540.0,86532.0,0.242683]
[1741411091554,0.1560796,86557.0,86539.0,0.011555]
[1741411091555,0.011554,86544.0,86539.0,0.011555]
[1741411091758,0.01234893,86540.0,86539.0,0.011555]
[1741411091935,0.011554,86544.0,86539.0,0.011555]
[1741411092991,0.242652,86543.0,86537.0,0.011555]
[1741411093931,0.011555,86542.0,86536.0,0.242671]
[1741411094145,0.231104,86541.0,86536.0,0.242671]
[1741411094337,0.231109,86539.0,86533.0,0.121996]
[1741411094845,0.0181267,86538.0,86533.0,0.121996]
[1741411095149,0.0296817,86538.0,86533.0,0.11044]
[1741411096230,0.0296817,86538.0,86533.0,0.35312]
[1741411096864,0.17618322,86541.0,86533.0,0.121996]
[1741411097190,0.01812672,86537.0,86533.0,0.121996]
[1741411097575,0.231109,86539.0,86533.0,0.121996]
[1741411097950,0.011555,86538.0,86533.0,0.11044]
[1741411098568,0.011555,86540.0,86533.0,0.353121]
[1741411098765,0.011555,86540.0,86534.0,0.011556]
[1741411099323,0.011555,86542.0,86535.0,0.242675]
[1741411099568,0.0361184,86541.0,86536.0,0.011555]
[1741411099790,0.01812657,86539.0,86536.0,0.011555]
[1741411100216,0.01812657,86539.0,86538.0,0.011555]
[1741411101363,0.05426262,86539.0,86538.0,0.011555]
[1741411107810,0.05426262,86539.0,86536.0,0.011555]
[1741411108025,0.02968157,86539.0,86538.0,0.1104]
[1741411108178,0.06586816,86539.0,86538.0,0.1104]
[1741411108943,0.06586816,86539.0,86538.0,0.05823281]
[1741411110940,0.242667,86538.0,86533.0,0.0003394]
[1741411111143,0.03618659,86537.0,86533.0,0.0003394]
[1741411111768,0.04774159,86537.0,86533.0,0.0003394]
[1741411111973,0.03618659,86536.0,86533.0,0.0003394]
[1741411113412,0.011556,86535.0,86533.0,0.0003394]
[1741411113615,0.03618659,86534.0,86533.0,0.0003394]
[1741411114437,0.04225756,86534.0,86533.0,0.0003394]
[1741411120973,0.04225756,86534.0,86533.0,0.0118954]
[1741411121534,0.03618659,86534.0,86533.0,0.0118954]
[1741411123653,0.03618659,86534.0,86533.0,0.0590954]
[1741411124211,0.01829627,86539.0,86537.0,0.24267]
[1741411124426,0.01829627,86539.0,86538.0,0.011555]
[1741411124661,0.05447237,86539.0,86538.0,0.011555]
[1741411125290,0.011555,86537.0,86531.0,0.242686]
[1741411125515,0.0361761,86536.0,86531.0,0.242686]
[1741411125707,0.04223757,86536.0,86531.0,0.353086]
[1741411125843,0.0361761,86535.0,86532.0,0.011556]
[1741411126318,0.04223757,86534.0,86532.0,0.011556]
[1741411126474,0.0361761,86533.0,86532.0,0.011556]
[1741411126923,0.0361761,86536.0,86533.0,0.242681]
[1741411127073,0.03617635,86535.0,86534.0,0.011556]
[1741411127291,0.03617635,86538.0,86534.0,0.011556]
[1741411127538,0.03617635,86537.0,86534.0,0.011556]
[1741411127762,0.03617635,86538.0,86534.0,0.011556]
[1741411129041,0.03617635,86538.0,86531.0,0.353086]
[1741411129042,0.011556,86534.0,86531.0,0.1104]
[1741411129238,0.03617635,86533.0,86532.0,0.242684]
[1741411129450,0.03617635,86538.0,86532.0,0.242684]
[1741411129682,0.03617635,86537.0,86534.0,0.011556]
[1741411129894,0.03617635,86538.0,86534.0,0.011556]
[1741411130065,0.03617635,86537.0,86534.0,0.011556]
[1741411130514,0.03617635,86536.0,86534.0,0.011556]
[1741411130731,0.03617635,86538.0,86534.0,0.011556]
[1741411130930,0.03617635,86535.0,86534.0,0.011556]
[1741411131174,0.03617635,86537.0,86534.0,0.242677]
[1741411131389,0.03617635,86538.0,86537.0,0.24267]
[1741411131595,0.01829627,86539.0,86538.0,0.011555]
[1741411132735,0.05447067,86539.0,86538.0,0.011555]
[1741411135491,0.06896161,86539.0,86538.0,0.011555]
[1741411138122,0.231112,86538.0,86531.0,0.1221257]
[1741411138360,0.0361744,86537.0,86531.0,0.1105697]
[1741411138565,0.0361744,86537.0,86533.0,0.011556]
[1741411138566,0.0361744,86536.0,86533.0,0.011556]
[1741411138804,0.0361744,86535.0,86533.0,0.242681]
[1741411139017,0.04223892,86534.0,86533.0,0.011556]
[1741411139511,0.04223892,86534.0,86531.0,0.31264208]
[1741411139747,0.0361744,86533.0,86531.0,0.08151308]
[1741411140164,0.0361744,86533.0,86531.0,0.0001697]
[1741411140165,0.01762329,86532.0,86531.0,0.0001697]
[1741411140377,0.13649769,86532.0,86531.0,0.0001697]
[1741411142370,0.15098863,86532.0,86531.0,0.0001697]
[1741411142848,0.17408569,86532.0,86531.0,0.0001697]
[1741411147342,0.19221469,86532.0,86531.0,0.0001697]
[1741411151308,0.17408569,86532.0,86531.0,0.0001697]
[1741411152298,0.011558,86519.0,86518.0,0.0003394]
[1741411152516,0.2788954,86519.0,86518.0,0.0003394]
[1741411152749,0.2848925,86519.0,86518.0,0.0003394]
[1741411154068,0.0421715,86519.0,86518.0,0.2430624]
[1741411154382,0.01449094,86532.0,86526.0,0.242699]
[1741411154617,0.03609066,86531.0,86526.0,0.242699]
[1741411154854,0.00600264,86531.0,86530.0,0.242689]
[1741411155053,0.00600264,86531.0,86530.0,0.292289]
[1741411155363,0.0003394,86533.0,86532.0,0.231128]
[1741411155566,0.03643312,86533.0,86532.0,0.242684]
[1741411155732,0.04243576,86533.0,86532.0,0.242684]
[1741411155949,0.06056303,86533.0,86532.0,0.242684]
[1741411156532,0.07505417,86533.0,86532.0,0.011556]
[1741411158047,0.06905153,86533.0,86532.0,0.011556]
[1741411161309,0.05456039,86533.0,86532.0,0.011556]
[1741411162187,0.0082383,86543.0,86534.0,0.011556]
[1741411162394,6.279e-05,86539.0,86535.0,0.242676]
[1741411162603,0.01812701,86533.0,86531.0,0.0117257]
[1741411162804,0.242684,86532.0,86531.0,0.0001697]
[1741411163050,0.01755864,86532.0,86531.0,0.0001697]
[1741411163373,0.242679,86534.0,86531.0,0.0001697]
[1741411163798,0.00600264,86533.0,86531.0,0.0001697]
[1741411164447,0.00600264,86533.0,86532.0,0.011556]
[1741411164839,0.10396371,86542.0,86536.0,0.242671]
[1741411165073,0.03011625,86537.0,86536.0,0.242671]
[1741411165692,0.04824288,86537.0,86536.0,0.242671]
[1741411166503,0.01812663,86537.0,86536.0,0.242671]
[1741411171091,0.01829633,86537.0,86536.0,0.242671]
[1741411172739,0.02434001,86537.0,86536.0,0.242671]
[1741411173663,0.06042361,86537.0,86536.0,0.242671]
[1741411175035,0.05437993,86537.0,86536.0,0.242671]
[1741411176468,0.05437993,86537.0,86534.0,0.011556]
[1741411176670,0.05437993,86537.0,86535.0,0.242676]
[1741411176671,0.0360836,86536.0,86535.0,0.242676]
[1741411177085,0.04212728,86536.0,86535.0,0.242676]
[1741411177460,0.04212728,86536.0,86532.0,0.011556]
[1741411177661,0.0360836,86535.0,86532.0,0.011556]
[1741411178077,0.04212728,86534.0,86532.0,0.011556]
[1741411178273,0.0360836,86533.0,86532.0,0.011556]
[1741411178885,0.0360836,86536.0,86532.0,0.011556]
[1741411179087,0.00604368,86533.0,86532.0,0.011556]
[1741411179482,0.0004,87979.0,86533.0,0.011556]
[1741411179687,60.0,86909.0,86533.0,0.011556]
[1741411179926,0.3417694,86554.0,86534.0,0.011556]
[1741411180106,0.011555,86539.0,86533.0,0.242681]
[1741411180840,0.02978418,86538.0,86533.0,0.242681]
[1741411181442,0.02978418,86538.0,86535.0,0.242675]
[1741411182284,0.02978418,86538.0,86537.0,0.24267]
[1741411182741,0.01812646,86540.0,86537.0,0.011555]
[1741411183255,0.0001697,86544.0,86535.0,0.242675]
[1741411183429,0.03609667,86542.0,86535.0,0.242675]
[1741411183654,0.03609667,86542.0,86533.0,0.011556]
[1741411183847,0.04765067,86543.0,86533.0,0.011556]
[1741411184051,0.27875267,86542.0,86533.0,0.011556]
[1741411184225,0.03609667,86541.0,86536.0,0.0003394]
[1741411185160,0.05058766,86541.0,86536.0,0.0003394]
[1741411185358,0.03609667,86540.0,86536.0,0.0003394]
[1741411185609,0.011555,86539.0,86536.0,0.0003394]
[1741411185828,0.011555,86537.0,86536.0,0.0003394]
[1741411186073,0.011555,86537.0,86530.0,0.0858691]
[1741411186287,0.011555,86537.0,86530.0,0.08593189]
[1741411186522,0.03609667,86536.0,86530.0,0.08593189]
[1741411188071,0.01449099,86535.0,86530.0,0.08593189]
[1741411188275,0.03609667,86534.0,86530.0,0.08593189]
[1741411188485,0.03609667,86534.0,86531.0,0.242687]
[1741411188661,0.03609667,86534.0,86531.0,0.011556]
[1741411189290,0.00604667,86533.0,86530.0,0.08593189]
[1741411189499,0.03609667,86532.0,86530.0,0.08593189]
[1741411189737,0.04213793,86532.0,86530.0,0.08593189]
[1741411189973,0.03609667,86531.0,86530.0,0.08593189]
[1741411190509,0.03609667,86531.0,86530.0,0.09748789]
[1741411190943,0.05422321,86531.0,86530.0,0.09748789]
[1741411191152,0.0687142,86531.0,86530.0,0.09748789]
[1741411192668,0.05422321,86531.0,86530.0,0.09748789]
[1741411192865,0.15812497,86531.0,86530.0,0.09748789]
[1741411193094,0.15812497,86531.0,86530.0,0.08593189]
[1741411193321,0.16416623,86531.0,86530.0,0.08593189]
[1741411193773,0.17572223,86531.0,86530.0,6.279e-05]
[1741411195290,0.28139569,86531.0,86530.0,6.279e-05]
[1741411196563,0.29588996,86531.0,86509.0,0.11032]
[1741411196795,0.242727,86517.0,86509.0,0.11032]
[1741411197034,0.03609667,86516.0,86509.0,0.11032]
[1741411197263,0.04215973,86516.0,86509.0,0.11032]
[1741411197464,0.05371773,86516.0,86509.0,0.11032]
[1741411197665,0.05059094,86515.0,86509.0,0.11032]
[1741411197832,0.03609667,86514.0,86509.0,0.11032]
[1741411198450,0.00606306,86513.0,86509.0,0.11032]
[1741411198672,0.03609667,86512.0,86509.0,0.11032]
[1741411199012,0.05467946,86512.0,86509.0,0.11032]
[1741411199224,0.04215973,86511.0,86509.0,0.11032]
[1741411199574,0.03609667,86510.0,86509.0,0.11032]
[1741411199932,0.00606306,86510.0,86509.0,0.11032]
[1741411200161,0.04215973,86510.0,86509.0,0.121879]
[1741411200529,0.03609667,86510.0,86509.0,0.199779]
[1741411200730,0.03609667,86511.0,86510.0,0.242746]
[1741411200951,0.01449427,86512.0,86511.0,0.011559]
[1741411201168,0.03655949,86514.0,86512.0,0.24274]
[1741411201411,0.03609536,86513.0,86512.0,0.24274]
[1741411202348,0.03609536,86513.0,86511.0,0.011559]
[1741411202578,0.03609536,86513.0,86509.0,0.11032]
[1741411202579,0.011559,86510.0,86509.0,0.11032]
[1741411202801,0.00606306,86512.0,86509.0,0.11032]
[1741411203022,0.01449431,86513.0,86509.0,0.11032]
[1741411203248,0.00606306,86511.0,86509.0,0.11032]
[1741411203462,0.01449431,86513.0,86509.0,0.11032]
[1741411203875,0.24876499,86512.0,86509.0,0.11032]
[1741411204082,0.011559,86510.0,86509.0,0.11032]
[1741411204314,0.00602299,86512.0,86509.0,0.11032]
[1741411204499,0.01449431,86510.0,86509.0,0.11032]
[1741411204700,0.0205173,86510.0,86509.0,0.11032]
[1741411204828,0.01449431,86510.0,86509.0,0.11032]
[1741411205033,0.0205173,86510.0,86509.0,0.11032]
[1741411205902,0.01449431,86510.0,86509.0,0.11032]
[1741411206525,0.02049442,86510.0,86509.0,0.11032]
[1741411207341,0.02049442,86510.0,86509.0,0.121879]
[1741411207551,0.01449431,86510.0,86509.0,0.121879]
[1741411207989,0.02049442,86510.0,86509.0,0.121879]
[1741411208536,0.02049442,86510.0,86509.0,0.11032]
[1741411210754,0.02049442,86510.0,86509.0,0.1104898]
[1741411212001,0.08301218,86514.0,86509.0,0.1104898]
[1741411212174,0.011558,86513.0,86509.0,0.1104898]
[1741411212992,0.02975348,86513.0,86510.0,0.011559]
[1741411214371,0.04788413,86513.0,86509.0,0.1220488]
[1741411214801,0.01813065,86513.0,86509.0,0.1104898]
[1741411215724,0.01813065,86513.0,86509.0,0.1220488]
[1741411215930,0.01813065,86513.0,86510.0,0.242746]
[1741411216163,0.04788413,86513.0,86510.0,0.242746]
[1741411218541,0.04788413,86513.0,86509.0,0.1104898]
[1741411218782,0.05883556,86515.0,86509.0,0.1104898]
[1741411219179,0.26086975,86513.0,86509.0,0.1104898]
[1741411219403,0.011559,86512.0,86509.0,0.1104898]
[1741411221215,0.0144942,86511.0,86509.0,0.1104898]
[1741411222066,0.03262508,86511.0,86509.0,0.1104898]
[1741411223402,0.0144942,86510.0,86509.0,0.1104898]
[1741411225810,0.0144942,86510.0,86509.0,0.1220488]
[1741411228707,0.05065109,86510.0,86509.0,0.1220488]
[1741411230695,0.05065109,86510.0,86509.0,0.1996488]
[1741411230891,0.0003396,86514.0,86509.0,0.1996488]
[1741411230892,0.0003396,86514.0,86513.0,0.33487785]
[1741411231077,0.0003396,86514.0,86513.0,0.38187785]
[1741411231888,0.0003396,86514.0,86513.0,0.70357705]
[1741411234225,0.0003396,86514.0,86513.0,0.6890362]
[1741411234464,0.0003396,86514.0,86513.0,0.7993562]
[1741411235226,0.0003396,86514.0,86513.0,0.6747562]
[1741411235447,0.03645887,86514.0,86513.0,0.4320192]
[1741411235678,0.03645887,86514.0,86513.0,0.3216992]
[1741411236416,0.29018774,86514.0,86513.0,0.3216992]
[1741411237457,0.30831769,86514.0,86513.0,0.3216992]
[1741411237887,0.30831769,86514.0,86511.0,0.0001698]
[1741411238087,0.03611927,86513.0,86511.0,0.0001698]
[1741411238647,0.01099487,86512.0,86511.0,0.0001698]
[1741411238850,0.04711414,86512.0,86511.0,0.0001698]
[1741411239051,0.05867314,86512.0,86511.0,0.0001698]
[1741411241015,0.14037314,86512.0,86511.0,0.0001698]
[1741411241222,0.18987314,86512.0,86511.0,0.0001698]
[1741411243254,0.242768,86502.0,86494.0,0.0001698]
[1741411243463,0.38916727,86502.0,86494.0,0.0001698]
[1741411243676,0.40011885,86502.0,86494.0,0.0001698]
[1741411244082,0.41825312,86502.0,86494.0,0.0001698]
[1741411244508,0.41835169,86502.0,86494.0,0.0001698]
[1741411245559,0.43285061,86502.0,86494.0,0.0001698]
[1741411247557,0.242788,86495.0,86494.0,0.0001698]
[1741411247825,0.27890727,86495.0,86494.0,0.0001698]
[1741411248463,0.04707085,86495.0,86494.0,0.0001698]
[1741411248637,0.05863185,86495.0,86494.0,0.0001698]
[1741411250432,0.02251258,86495.0,86494.0,0.0001698]
[1741411250654,0.03401558,86495.0,86494.0,0.0001698]
[1741411251241,0.04557658,86495.0,86494.0,0.0001698]
[1741411251821,0.06007518,86495.0,86494.0,0.0001698]
[1741411260441,0.07820861,86495.0,86494.0,0.0001698]
[1741411261298,0.11412173,86495.0,86494.0,0.0001698]
[1741411263436,0.07820861,86495.0,86494.0,0.0001698]
[1741411264003,0.11410477,86495.0,86494.0,0.0001698]
[1741411264900,0.09960617,86495.0,86494.0,0.0001698]
[1741411265250,0.14710617,86495.0,86494.0,0.0001698]
[1741411265453,0.25742617,86495.0,86494.0,0.0001698]
[1741411266072,0.24586517,86495.0,86480.0,0.005]
[1741411266270,0.242827,86481.0,86480.0,0.005]
[1741411266655,0.25176188,86481.0,86480.0,0.005]
[1741411267369,0.28767564,86481.0,86480.0,0.005]
[1741411269436,0.41077564,86481.0,86480.0,0.005]
[1741411269678,0.51412662,86481.0,86480.0,0.005]
[1741411270514,0.54090982,86481.0,86471.0,0.0004]
[1741411270738,0.319152,86472.0,86471.0,0.0004]
[1741411270990,0.46538576,86472.0,86471.0,0.0004]
[1741411271177,0.011564,86470.0,86464.0,0.0001697]
[1741411271643,0.05633915,86470.0,86464.0,0.0001697]
[1741411272037,0.08312235,86470.0,86469.0,0.00055722]
[1741411272985,0.12992235,86470.0,86469.0,2.2e-07]
[1741411273192,0.20622235,86470.0,86469.0,2.2e-07]
[1741411273604,0.20622235,86470.0,86464.0,0.0001697]
[1741411273605,0.242872,86465.0,86464.0,9.2e-07]
[1741411273806,0.27878576,86465.0,86464.0,9.2e-07]
[1741411273983,0.28749123,86465.0,86464.0,9.2e-07]
[1741411275785,0.32878126,86465.0,86464.0,9.2e-07]
[1741411276512,0.08590926,86465.0,86464.0,9.2e-07]
[1741411276666,0.09747426,86465.0,86464.0,9.2e-07]
[1741411280682,0.242909,86452.0,86451.0,0.0004]
[1741411280905,0.27882276,86452.0,86451.0,0.0004]
[1741411281126,0.28751863,86452.0,86451.0,0.0004]
[1741411282067,0.32880866,86452.0,86451.0,0.0004]
[1741411282263,0.32880866,86452.0,86445.0,0.005]
[1741411282466,0.242922,86447.0,86445.0,0.005]
[1741411282913,0.25161787,86447.0,86445.0,0.005]
[1741411283719,0.27548096,86447.0,86445.0,0.005]
[1741411283917,0.27548096,86447.0,86446.0,0.0770394]
[1741411283918,0.03255896,86447.0,86446.0,0.0770394]
[1741411284333,0.07384899,86447.0,86446.0,0.1247394]
[1741411289104,0.08541599,86447.0,86446.0,0.1247394]
[1741411289302,0.08541599,86447.0,86446.0,0.0003394]
[1741411293142,0.07384899,86447.0,86446.0,0.0003394]
[1741411293524,0.08541599,86447.0,86446.0,0.0003394]
[1741411297698,0.07384899,86447.0,86446.0,0.0119064]
[1741411297908,0.07384899,86447.0,86446.0,0.0003394]
[1741411298100,0.10321629,86450.0,86446.0,0.0003394]
[1741411298101,0.231348,86450.0,86446.0,0.0003394]
[1741411298300,0.00572788,86447.0,86446.0,0.0003394]
[1741411298498,0.231354,86448.0,86446.0,0.0003394]
[1741411298701,0.00572788,86447.0,86446.0,0.0003394]
[1741411298873,0.00572788,86447.0,86445.0,0.005]
[1741411298874,0.011567,86446.0,86445.0,0.005]
[1741411299274,0.01729488,86446.0,86445.0,0.005]
[1741411304188,0.00572788,86446.0,86445.0,0.23636]
[1741411304414,0.00572788,86446.0,86445.0,0.327028]
[1741411304613,0.02347576,86448.0,86446.0,0.011567]
[1741411305068,0.242909,86452.0,86446.0,0.011567]
[1741411305309,0.02373319,86448.0,86446.0,0.011567]
[1741411305508,0.03602951,86447.0,86446.0,0.011567]
[1741411305776,0.04175739,86447.0,86446.0,0.011567]
[1741411306721,0.02023406,86447.0,86445.0,0.327028]
[1741411308358,0.05054496,86446.0,86445.0,0.327028]
[1741411308595,0.05054496,86446.0,86445.0,0.095668]
[1741411308833,0.056276,86446.0,86445.0,0.095668]
[1741411309522,0.05054496,86446.0,86445.0,0.095668]
[1741411309761,0.07641592,86446.0,86445.0,0.095668]
[1741411310272,0.07641592,86446.0,86445.0,0.0958379]
[1741411311642,0.08214696,86446.0,86445.0,0.0958379]
[1741411316550,0.09832167,86446.0,86445.0,0.0958379]
[1741411319281,0.09832167,86446.0,86445.0,0.0842699]
[1741411324978,0.08381549,86446.0,86445.0,0.0842699]
[1741411326944,0.08381549,86446.0,86445.0,0.0001699]
[1741411327508,0.08381549,86446.0,86445.0,0.50769795]
[1741411327711,0.01364661,86446.0,86445.0,0.50769795]
[1741411328057,0.0003398,86447.0,86446.0,0.2577504]
[1741411328209,0.0003398,86447.0,86446.0,0.25746585]